bitfinex-derivatives/quotes_SOLF0:USTF0_20250507
["timestamp","ask_amount","ask_price","bid_price","bid_amount"]
[1746628278181,12.04082862,147.47,147.39,6.7842]
[1746628279582,6.7828,147.43,147.39,6.7842]
[1746628280084,2.0594,147.44,147.38,29.08]
[1746628280276,29.08,147.45,147.38,29.08]
[1746628280472,31.1394,147.48,147.38,29.08]
[1746628281378,2.0594,147.48,147.38,29.08]
[1746628281881,6.7808,147.47,147.44,6.7817]
[1746628282081,6.7808,147.47,147.43,29.08]
[1746628282478,6.7808,147.47,147.44,6.782]
[1746628284292,8.8398,147.48,147.43,29.08]
[1746628284980,2.0594,147.48,147.43,29.08]
[1746628285175,24.02773011,147.53,147.43,29.08]
[1746628285381,26.02653011,147.53,147.43,29.08]
[1746628285585,6.7792,147.51,147.48,6.7801]
[1746628286790,26.02653011,147.53,147.47,29.08]
[1746628287183,1.9988,147.53,147.5,6.779]
[1746628287986,6.7772,147.55,147.47,29.08]
[1746628288188,24.02773011,147.56,147.47,29.08]
[1746628288690,6.7778,147.54,147.5,6.779]
[1746628288987,6.7778,147.54,147.51,6.7786]
[1746628289192,6.7771,147.55,147.51,6.7786]
[1746628289393,6.7771,147.55,147.51,29.06]
[1746628289593,6.7771,147.55,147.52,6.7781]
[1746628291591,31.0788,147.57,147.51,44.08]
[1746628291798,43.11962862,147.57,147.51,44.08]
[1746628292294,6.7784,147.52,147.51,15.02]
[1746628293499,6.7781,147.53,147.51,15.02]
[1746628293792,43.11962862,147.57,147.51,15.02]
[1746628294700,6.7781,147.53,147.51,15.02]
[1746628297502,6.7776,147.54,147.51,15.02]
[1746628297694,43.11962862,147.57,147.51,15.02]
[1746628298400,6.7778,147.54,147.51,15.02]
[1746628298599,6.7778,147.54,147.51,21.7987]
[1746628299697,43.11962862,147.57,147.51,15.02]
[1746628299901,31.0788,147.57,147.51,15.02]
[1746628300400,6.7768,147.56,147.53,6.7777]
[1746628300601,1.9988,147.57,147.51,15.02]
[1746628301001,8.7752,147.57,147.53,6.7776]
[1746628301398,8.7752,147.57,147.52,29.12]
[1746628301603,4.1688,147.59,147.52,29.12]
[1746628301999,8.791,147.59,147.55,6.7768]
[1746628302402,2.0156,147.59,147.55,6.7768]
[1746628302605,6.7757,147.58,147.55,6.7768]
[1746628302805,6.7757,147.58,147.54,6.7772]
[1746628303801,6.7762,147.57,147.54,6.7772]
[1746628307205,2.0156,147.59,147.53,36.6]
[1746628308204,2.0156,147.59,147.53,43.3779]
[1746628308505,6.7768,147.56,147.53,43.3779]
[1746628308806,2.0156,147.59,147.53,15.01]
[1746628309005,6.777,147.56,147.53,15.01]
[1746628309304,2.0156,147.59,147.53,15.01]
[1746628309496,6.776,147.58,147.53,15.01]
[1746628309700,2.0156,147.59,147.53,15.01]
[1746628309899,2.0156,147.59,147.54,6.777]
[1746628310205,6.7758,147.58,147.53,15.01]
[1746628310406,6.7758,147.58,147.55,6.777]
[1746628311607,6.7754,147.59,147.56,6.7765]
[1746628311806,2.1993,147.61,147.53,15.01]
[1746628311997,6.7752,147.59,147.56,6.7763]
[1746628312907,6.7752,147.59,147.56,8.5263]
[1746628313510,6.7752,147.59,147.56,1.75]
[1746628314504,6.7756,147.58,147.56,1.75]
[1746628314803,2.1993,147.61,147.56,1.75]
[1746628316608,6.7761,147.57,147.56,1.75]
[1746628317208,6.7758,147.58,147.56,1.75]
[1746628317610,2.1993,147.61,147.56,1.75]
[1746628318909,6.7761,147.57,147.56,1.75]
[1746628319210,2.1993,147.61,147.56,1.75]
[1746628320109,6.7759,147.58,147.56,1.75]
[1746628320509,2.1993,147.61,147.56,1.75]
[1746628321210,6.776,147.58,147.56,1.75]
[1746628321614,2.1993,147.61,147.56,1.75]
[1746628321813,6.7761,147.57,147.56,1.75]
[1746628322619,6.7758,147.58,147.56,1.75]
[1746628323809,6.7761,147.57,147.56,1.75]
[1746628325514,6.7758,147.58,147.56,1.75]
[1746628325716,2.1993,147.61,147.56,1.75]
[1746628327016,6.7761,147.57,147.56,1.75]
[1746628329819,2.1993,147.61,147.54,35.84]
[1746628330117,6.777,147.55,147.54,35.84]
[1746628330314,29.02,147.57,147.49,29.02]
[1746628330516,6.7782,147.53,147.49,29.02]
[1746628331018,6.7782,147.53,147.49,35.7994]
[1746628331218,6.7776,147.54,147.49,35.7994]
[1746628331722,6.7776,147.54,147.5,6.779]
[1746628333113,29.02,147.57,147.49,35.7995]
[1746628333623,6.7792,147.51,147.49,29.02]
[1746628333823,12.04082862,147.56,147.47,13.01]
[1746628334024,29.02,147.57,147.47,13.01]
[1746628334226,6.7782,147.53,147.49,6.7796]
[1746628335224,6.7784,147.52,147.49,6.7796]
[1746628335420,6.7784,147.52,147.48,6.78]
[1746628335624,6.2723,147.56,147.48,6.78]
[1746628335824,6.7787,147.52,147.48,6.78]
[1746628336224,6.7787,147.52,147.49,6.7796]
[1746628337623,6.7787,147.52,147.48,6.78]
[1746628338128,6.7787,147.52,147.49,6.7797]
[1746628338323,6.7787,147.52,147.47,13.01]
[1746628338731,6.7787,147.52,147.48,6.7799]
[1746628340833,6.7787,147.52,147.49,6.7797]
[1746628341833,6.779,147.51,147.48,6.7801]
[1746628342132,6.779,147.51,147.47,13.01]
[1746628342532,6.779,147.51,147.47,19.7904]
[1746628343132,6.779,147.51,147.48,6.7801]
[1746628343934,6.7786,147.52,147.49,6.7796]
[1746628344132,6.2723,147.56,147.49,6.7796]
[1746628344636,6.7783,147.53,147.49,6.7796]
[1746628345036,6.2723,147.56,147.48,6.78]
[1746628345640,6.7788,147.52,147.48,6.78]
[1746628346337,6.7788,147.52,147.49,6.7797]
[1746628346638,6.7781,147.53,147.49,6.7797]
[1746628346836,29.02,147.57,147.51,6.7788]
[1746628347037,29.02,147.57,147.5,29.02]
[1746628347438,29.02,147.57,147.51,6.7785]
[1746628347840,6.7772,147.55,147.51,6.7785]
[1746628348340,6.7772,147.55,147.5,29.02]
[1746628348341,6.7772,147.55,147.52,6.7783]
[1746628349042,6.7762,147.57,147.5,29.02]
[1746628349244,24.02773011,147.59,147.5,29.02]
[1746628349541,6.7768,147.56,147.52,6.778]
[1746628349940,24.02773011,147.59,147.5,29.02]
[1746628350343,6.7772,147.55,147.51,6.7785]
[1746628350941,6.7775,147.54,147.51,6.7785]
[1746628353846,6.778,147.53,147.51,6.7785]
[1746628354345,632.90662862,147.6,147.5,29.02]
[1746628354839,12.04082862,147.57,147.48,6.78]
[1746628355149,6.7788,147.52,147.48,6.78]
[1746628355445,6.7795,147.5,147.47,42.03]
[1746628355841,6.7795,147.5,147.47,29.02]
[1746628356340,14.19792862,147.54,147.47,29.02]
[1746628356541,14.19792862,147.54,147.44,617.1408]
[1746628356736,6.7802,147.49,147.45,6.7815]
[1746628356946,29.02,147.52,147.45,6.7815]
[1746628357347,6.7801,147.49,147.45,6.7815]
[1746628357945,6.7801,147.49,147.46,6.781]
[1746628359047,29.02,147.52,147.44,29.02]
[1746628359442,6.7805,147.48,147.44,48.772]
[1746628360147,6.7809,147.47,147.44,41.99]
[1746628361847,6.7813,147.46,147.44,41.99]
[1746628362043,29.02,147.52,147.44,41.99]
[1746628362245,29.02,147.52,147.42,6.7827]
[1746628362443,6.781,147.47,147.41,31.0368]
[1746628362644,29.02,147.52,147.41,31.0368]
[1746628362846,29.02,147.52,147.42,6.7827]
[1746628363042,29.02,147.52,147.41,31.0368]
[1746628363043,6.7814,147.46,147.41,31.0368]
[1746628363550,6.7809,147.47,147.43,6.7822]
[1746628364150,6.7803,147.48,147.41,31.0368]
[1746628364344,29.02,147.52,147.41,31.0368]
[1746628364746,6.7795,147.5,147.47,6.7804]
[1746628365450,6.7791,147.51,147.48,6.7802]
[1746628367453,35.7987,147.52,147.46,29.02]
[1746628367646,29.02,147.52,147.46,29.02]
[1746628368049,29.02,147.52,147.48,6.7798]
[1746628368050,6.7789,147.51,147.48,6.7798]
[1746628368250,29.02,147.52,147.48,6.7798]
[1746628368751,6.7789,147.51,147.48,6.7798]
[1746628369853,35.7985,147.52,147.48,6.7798]
[1746628370751,6.7788,147.51,147.48,6.7798]
[1746628371558,35.7986,147.52,147.48,6.7798]
[1746628372153,6.7789,147.51,147.48,6.7798]
[1746628373353,6.7789,147.51,147.47,6.7804]
[1746628373555,6.7789,147.51,147.46,29.02]
[1746628373952,6.7789,147.51,147.47,6.7804]
[1746628375451,6.7789,147.51,147.48,6.7802]
[1746628378254,6.7789,147.51,147.47,6.7804]
[1746628379853,6.7793,147.5,147.47,6.7804]
[1746628380756,6.7791,147.51,147.47,6.7804]
[1746628380957,6.7791,147.51,147.48,6.7801]
[1746628381558,6.7793,147.5,147.47,6.7805]
[1746628381753,29.02,147.52,147.46,29.02]
[1746628382055,6.7798,147.49,147.46,35.8008]
[1746628383160,6.7805,147.48,147.46,29.02]
[1746628385455,29.02,147.52,147.46,29.02]
[1746628385664,29.02,147.52,147.45,12.97]
[1746628385863,12.04082862,147.5,147.45,12.97]
[1746628386160,6.7811,147.46,147.45,12.97]
[1746628386458,12.04082862,147.5,147.43,29.02]
[1746628386665,6.7818,147.45,147.41,8.7999]
[1746628386860,29.02,147.48,147.4,112.05431972]
[1746628387060,29.02,147.48,147.4,110.02471972]
[1746628387359,29.02,147.48,147.4,29.02]
[1746628388759,6.7832,147.42,147.4,29.02]
[1746628388963,6.7832,147.42,147.41,12.93]
[1746628392669,6.7832,147.42,147.37,616.9095]
[1746628392868,6.7832,147.42,147.38,6.7846]
[1746628393771,6.7832,147.42,147.39,6.7842]
[1746628394269,6.7826,147.43,147.39,6.7842]
[1746628394570,29.02,147.48,147.37,616.9095]
[1746628394774,6.7814,147.46,147.37,616.9095]
[1746628394965,6.7814,147.46,147.42,6.7827]
[1746628395267,6.7817,147.45,147.42,6.7827]
[1746628395471,41.06082862,147.48,147.37,31.1495]
[1746628395665,12.04082862,147.45,147.37,2.1295]
[1746628395865,6.7832,147.42,147.37,2.1295]
[1746628396069,12.04082862,147.48,147.37,2.1295]
[1746628396265,29.04,147.47,147.37,31.1695]
[1746628396572,6.7818,147.45,147.41,6.7832]
[1746628396869,29.04,147.47,147.38,12.93]
[1746628397266,12.04082862,147.45,147.38,12.93]
[1746628397670,6.7843,147.39,147.38,12.93]
[1746628398265,6.7841,147.4,147.38,12.93]
[1746628398469,29.04,147.42,147.38,12.93]
[1746628399373,6.7843,147.39,147.38,12.93]
[1746628399772,6.7843,147.39,147.34,33.3314]
[1746628399974,6.7841,147.4,147.34,40.1178]
[1746628400277,6.7841,147.4,147.34,33.3314]
[1746628400579,6.7844,147.39,147.34,40.1178]
[1746628400773,29.04,147.42,147.34,40.1178]
[1746628400774,29.04,147.42,147.34,31.1481]
[1746628401170,6.7847,147.39,147.34,37.9346]
[1746628401378,29.04,147.42,147.34,37.9346]
[1746628401576,6.7848,147.39,147.34,37.9346]
[1746628401776,29.04,147.42,147.34,37.9346]
[1746628402177,29.04,147.42,147.35,12.92]
[1746628402480,6.7851,147.38,147.35,12.92]
[1746628403773,6.7845,147.39,147.35,19.706]
[1746628404079,29.04,147.42,147.35,12.92]
[1746628404375,6.7842,147.4,147.36,6.7856]
[1746628405078,6.7844,147.39,147.35,19.706]
[1746628405270,29.04,147.42,147.35,12.92]
[1746628405776,41.08082862,147.42,147.35,12.92]
[1746628406578,6.7852,147.38,147.35,12.92]
[1746628407280,41.08082862,147.42,147.35,12.92]
[1746628407883,6.7857,147.36,147.35,12.92]
[1746628408480,6.7857,147.37,147.35,12.92]
[1746628412184,6.7857,147.36,147.35,12.92]
[1746628413793,6.7854,147.37,147.35,12.92]
[1746628414392,6.7857,147.36,147.35,12.92]
[1746628415791,29.04,147.38,147.29,6.3223]
[1746628415993,4.1923,147.37,147.29,6.3223]
[1746628416196,6.7874,147.33,147.29,13.111]
[1746628416397,12.04082862,147.36,147.28,29.04]
[1746628416797,6.7878,147.32,147.28,35.8292]
[1746628417595,6.7881,147.31,147.28,29.04]
[1746628417798,29.12,147.34,147.28,29.04]
[1746628417989,6.7887,147.3,147.25,29.14]
[1746628418189,6.7887,147.3,147.26,6.7902]
[1746628418394,6.7887,147.3,147.25,29.14]
[1746628418597,6.7887,147.3,147.26,6.79]
[1746628418796,6.7887,147.3,147.25,29.14]
[1746628419098,6.7887,147.3,147.26,6.7899]
[1746628419397,6.7887,147.3,147.25,29.14]
[1746628419698,6.789,147.29,147.26,6.7899]
[1746628419891,6.789,147.29,147.25,29.14]
[1746628420092,12.04082862,147.33,147.25,29.14]
[1746628420292,12.04082862,147.33,147.25,35.9307]
[1746628420895,6.7892,147.29,147.25,35.9307]
[1746628421594,6.7892,147.29,147.25,29.14]
[1746628421803,29.12,147.34,147.25,29.14]
[1746628422200,29.12,147.34,147.27,6.7895]
[1746628422401,6.7884,147.31,147.26,2.1989]
[1746628422703,6.7884,147.31,147.27,6.7895]
[1746628422899,6.7885,147.3,147.27,6.7895]
[1746628423096,29.12,147.34,147.26,2.1989]
[1746628423296,29.12,147.34,147.27,4.2135]
[1746628423597,6.7869,147.34,147.27,4.2135]
[1746628423797,6.7869,147.34,147.31,6.7879]
[1746628424003,6.7859,147.36,147.28,29.14]
[1746628424393,29.14,147.37,147.28,29.14]
[1746628424595,6.7865,147.35,147.28,29.14]
[1746628424901,6.7865,147.35,147.32,6.7873]
[1746628425397,6.7866,147.34,147.31,6.7878]
[1746628425701,29.14,147.37,147.28,29.14]
[1746628426001,6.7873,147.33,147.3,6.7882]
[1746628426394,29.14,147.37,147.28,29.14]
[1746628426595,6.7881,147.31,147.28,29.14]
[1746628427094,6.7886,147.3,147.27,4.2135]
[1746628427596,6.7882,147.31,147.28,6.7893]
[1746628427903,6.7882,147.31,147.27,4.2135]
[1746628428203,6.7882,147.31,147.28,6.7893]
[1746628428404,6.7882,147.31,147.27,4.2135]
[1746628428901,6.7882,147.31,147.28,6.7893]
[1746628429099,33.3936,147.36,147.27,4.2135]
[1746628429402,29.14,147.36,147.31,6.7877]
[1746628429601,6.7874,147.33,147.31,6.7877]
[1746628429903,29.14,147.36,147.31,6.7877]
[1746628430204,6.787,147.34,147.31,6.7877]
[1746628430904,29.14,147.36,147.31,6.7877]
[1746628431304,29.14,147.36,147.3,6.7883]
[1746628431507,6.7874,147.33,147.3,6.7883]
[1746628432606,29.14,147.36,147.29,29.14]
[1746628433205,6.7869,147.34,147.29,29.14]
[1746628434006,6.7869,147.34,147.3,6.7882]
[1746628435506,29.14,147.36,147.29,29.14]
[1746628436604,6.7859,147.36,147.33,6.7869]
[1746628436804,6.7859,147.36,147.29,29.14]
[1746628437509,6.7859,147.36,147.31,6.7877]
[1746628437707,6.7866,147.35,147.31,6.7877]
[1746628438504,6.7859,147.36,147.32,6.7872]
[1746628438809,29.14,147.39,147.32,6.7872]
[1746628439105,6.7873,147.33,147.3,6.7884]
[1746628439710,6.7873,147.33,147.29,35.9288]
[1746628439908,6.7877,147.32,147.29,35.9288]
[1746628440407,6.7877,147.32,147.29,29.14]
[1746628441007,6.7883,147.31,147.29,29.14]
[1746628441411,6.7885,147.3,147.29,29.14]
[1746628441809,12.04082862,147.38,147.29,35.9289]
[1746628443110,6.7879,147.32,147.29,29.14]
[1746628443914,6.7879,147.32,147.29,35.9288]
[1746628444910,6.788,147.31,147.29,29.14]
[1746628445211,29.14,147.35,147.29,29.14]
[1746628445413,6.7885,147.3,147.27,11.0033]
[1746628446713,41.18082862,147.35,147.27,4.2135]
[1746628446918,6.016,147.34,147.26,31.3389]
[1746628447416,6.016,147.34,147.26,38.1289]
[1746628448216,6.7887,147.3,147.26,38.1289]
[1746628448614,6.016,147.34,147.26,31.3389]
[1746628449516,6.7889,147.3,147.26,38.1289]
[1746628449911,6.7889,147.3,147.26,29.14]
[1746628450116,6.016,147.34,147.26,29.14]
[1746628450320,29.18,147.31,147.23,615.52]
[1746628450620,6.789,147.29,147.25,6.7906]
[1746628451621,6.789,147.29,147.26,6.7903]
[1746628452120,6.7887,147.3,147.26,6.7903]
[1746628452314,29.18,147.31,147.24,6.791]
[1746628452518,29.18,147.31,147.23,29.18]
[1746628452710,6.7892,147.29,147.25,6.7906]
[1746628453013,29.18,147.31,147.23,29.18]
[1746628453414,29.18,147.31,147.24,6.7911]
[1746628453822,6.7896,147.28,147.24,6.7911]
[1746628454319,6.7903,147.27,147.23,35.9716]
[1746628454523,29.18,147.31,147.23,29.18]
[1746628454724,29.18,147.31,147.21,6.4316]
[1746628454920,6.7905,147.26,147.22,6.7918]
[1746628455319,29.18,147.31,147.23,6.7916]
[1746628455713,29.18,147.31,147.21,6.4316]
[1746628456524,6.7892,147.29,147.24,6.7909]
[1746628456723,6.7892,147.29,147.21,6.4316]
[1746628456927,29.18,147.31,147.21,6.4316]
[1746628457625,29.18,147.31,147.25,6.7907]
[1746628457920,29.18,147.31,147.21,6.4316]
[1746628459125,59.22373011,147.34,147.21,6.4316]
[1746628459327,35.196,147.34,147.21,6.4316]
[1746628459528,6.7882,147.31,147.28,6.7892]
[1746628460223,6.7876,147.32,147.26,29.18]
[1746628460417,29.18,147.34,147.26,29.18]
[1746628460621,29.18,147.34,147.27,6.3796]
[1746628461228,6.7881,147.31,147.28,6.7892]
[1746628461531,29.18,147.34,147.28,6.7892]
[1746628461731,6.7884,147.31,147.28,6.7892]
[1746628461931,6.7884,147.31,147.26,29.18]
[1746628462230,29.18,147.34,147.26,29.18]
[1746628462533,6.7877,147.32,147.28,6.7892]
[1746628462831,6.7877,147.32,147.26,29.18]
[1746628463134,6.7877,147.32,147.29,6.7887]
[1746628463429,6.7877,147.32,147.26,29.18]
[1746628463634,6.7881,147.31,147.28,6.7892]
[1746628463929,29.18,147.34,147.26,29.18]
[1746628464137,6.7888,147.3,147.26,35.97]
[1746628464344,6.7888,147.3,147.26,29.18]
[1746628464640,6.7888,147.3,147.26,35.97]
[1746628465939,6.789,147.29,147.26,6.79]
[1746628466145,4.0971,147.33,147.26,6.79]
[1746628466439,6.7887,147.3,147.26,6.79]
[1746628466739,4.0971,147.33,147.26,6.79]
[1746628467439,6.7888,147.3,147.26,6.79]
[1746628468439,6.789,147.29,147.25,6.7906]
[1746628468638,4.0971,147.33,147.23,35.4549]
[1746628469042,4.0971,147.33,147.26,6.7903]
[1746628469337,4.0971,147.33,147.23,35.4549]
[1746628469933,6.7892,147.29,147.23,35.4549]
[1746628470541,6.7894,147.28,147.23,35.4549]
[1746628470941,6.7894,147.28,147.24,6.7909]
[1746628471543,6.7894,147.28,147.25,6.7907]
[1746628474045,6.7899,147.27,147.25,6.7907]
[1746628474242,14.06222862,147.32,147.25,6.7907]
[1746628474445,4.0971,147.33,147.23,35.4549]
[1746628474640,6.7887,147.3,147.23,35.4549]
[1746628474946,6.7887,147.3,147.28,6.7894]
[1746628475751,6.7882,147.31,147.29,6.7888]
[1746628475944,29.18,147.34,147.27,29.18]
[1746628476247,6.7878,147.32,147.3,6.7883]
[1746628476444,6.7878,147.32,147.27,29.18]
[1746628476646,29.18,147.34,147.27,29.18]
[1746628476845,6.7884,147.31,147.28,6.789]
[1746628477842,29.18,147.34,147.27,29.18]
[1746628478546,29.18,147.34,147.24,29.18]
[1746628478853,31.1697,147.34,147.24,29.18]
[1746628479048,6.7892,147.29,147.26,6.7903]
[1746628479952,6.7894,147.28,147.25,6.7906]
[1746628482454,6.7894,147.28,147.26,6.7903]
[1746628483748,6.7892,147.29,147.26,6.7903]
[1746628483954,33.1593,147.34,147.26,6.7903]
[1746628484657,6.7894,147.28,147.25,6.7906]
[1746628484852,33.1593,147.34,147.25,6.7906]
[1746628485051,33.1593,147.34,147.24,29.18]
[1746628485258,6.7893,147.29,147.25,6.7906]
[1746628485655,6.7893,147.29,147.24,29.18]
[1746628486860,6.7893,147.29,147.26,6.79]
[1746628487563,6.7894,147.28,147.26,6.79]
[1746628487756,6.7894,147.28,147.24,29.18]
[1746628488162,6.7894,147.28,147.25,6.7904]
[1746628488359,6.7894,147.28,147.24,29.18]
[1746628488756,6.7894,147.28,147.25,6.7907]
[1746628488958,6.7892,147.29,147.24,29.18]
[1746628489261,6.7892,147.29,147.26,6.7901]
[1746628490359,6.7897,147.28,147.25,6.7908]
[1746628491158,6.79,147.27,147.25,6.7908]
[1746628491359,6.79,147.27,147.24,35.971]
[1746628491564,57.22882382,147.34,147.24,29.18]
[1746628491763,6.7894,147.28,147.24,29.18]
[1746628491964,6.7894,147.28,147.25,6.7906]
[1746628493767,6.7894,147.28,147.26,6.7903]
[1746628494061,6.7892,147.29,147.24,29.18]
[1746628495362,57.22882382,147.34,147.24,29.18]
[1746628496062,6.7892,147.29,147.24,29.18]
[1746628496661,6.7892,147.29,147.26,6.79]
[1746628498671,33.1593,147.34,147.24,29.18]
[1746628499277,6.788,147.31,147.29,6.7888]
[1746628499465,33.1593,147.34,147.24,29.18]
[1746628499665,29.18,147.34,147.24,29.18]
[1746628499867,6.7879,147.32,147.24,29.18]
[1746628500268,15.17849465,147.33,147.24,29.18]
[1746628500466,6.788,147.31,147.29,6.7887]
[1746628500971,6.788,147.31,147.24,29.18]
[1746628501170,6.788,147.31,147.28,6.7891]
[1746628502672,6.7885,147.3,147.28,6.7891]
[1746628503173,6.7882,147.31,147.28,6.7891]
[1746628503473,6.7882,147.31,147.29,6.7889]
[1746628503676,6.7882,147.31,147.24,29.18]
[1746628503873,6.7886,147.3,147.28,6.7892]
[1746628504067,6.7886,147.3,147.24,29.18]
[1746628504776,6.7886,147.3,147.28,6.7893]
[1746628505573,6.7886,147.3,147.27,6.7896]
[1746628506074,6.7886,147.3,147.24,29.18]
[1746628507176,6.789,147.29,147.27,6.7896]
[1746628507776,6.7887,147.3,147.27,6.7896]
[1746628508181,6.7887,147.3,147.28,6.7893]
[1746628508677,29.18,147.34,147.27,6.7895]
[1746628509175,29.18,147.34,147.24,29.18]
[1746628509473,29.18,147.34,147.28,6.7893]
[1746628509672,29.18,147.34,147.24,29.18]
[1746628509873,6.7886,147.3,147.27,6.7896]
[1746628511277,6.7886,147.3,147.28,6.7894]
[1746628512478,6.7882,147.31,147.28,6.7894]
[1746628512680,29.18,147.34,147.28,6.7894]
[1746628513082,6.7884,147.31,147.28,6.7894]
[1746628513378,29.18,147.34,147.27,6.7896]
[1746628514380,6.7884,147.31,147.27,6.7896]
[1746628514777,29.18,147.34,147.27,6.7896]
[1746628515081,29.18,147.34,147.28,6.7893]
[1746628515580,6.7883,147.31,147.28,6.7893]
[1746628515785,29.18,147.34,147.27,6.7896]
[1746628516381,6.7887,147.3,147.27,6.7896]
[1746628516582,29.18,147.34,147.26,6.7902]
[1746628516982,29.18,147.34,147.24,29.18]
[1746628517178,4.1336,147.33,147.25,6.7906]
[1746628517481,6.7893,147.29,147.24,29.18]
[1746628517981,6.7893,147.29,147.25,6.7904]
[1746628518181,6.7893,147.29,147.24,29.18]
[1746628518576,6.7893,147.29,147.25,6.7905]
[1746628519181,6.79,147.27,147.24,35.971]
[1746628523387,6.7906,147.26,147.24,29.18]
[1746628524284,6.7908,147.25,147.24,29.18]
[1746628525087,6.7905,147.26,147.24,35.9712]
[1746628525288,6.7905,147.26,147.24,29.18]
[1746628525687,6.7908,147.25,147.24,29.18]
[1746628526089,6.7908,147.25,147.21,29.08]
[1746628526289,6.7908,147.25,147.22,6.7919]
[1746628528589,29.08,147.3,147.22,6.7919]
[1746628529492,6.7906,147.26,147.22,6.7919]
[1746628530091,6.7906,147.26,147.23,6.7916]
[1746628530292,6.7901,147.27,147.23,6.7916]
[1746628530587,6.7901,147.27,147.21,29.08]
[1746628530786,6.7901,147.27,147.24,6.7911]
[1746628531795,6.7904,147.26,147.24,6.7911]
[1746628532184,29.08,147.3,147.24,6.7911]
[1746628533096,6.7901,147.27,147.25,6.7908]
[1746628533295,6.7901,147.27,147.21,29.08]
[1746628533694,6.7901,147.27,147.24,6.7909]
[1746628535996,29.08,147.3,147.21,29.08]
[1746628536593,6.789,147.29,147.27,6.7896]
[1746628538498,6.7887,147.3,147.27,6.7896]
[1746628538697,6.7887,147.3,147.28,6.7893]
[1746628539295,6.7883,147.31,147.28,6.7893]
[1746628539496,55.32952382,147.36,147.25,29.08]
[1746628539790,55.32952382,147.36,147.26,2.0113]
[1746628539999,12.04082862,147.35,147.27,6.7896]
[1746628541697,6.7885,147.31,147.27,6.7896]
[1746628542096,6.7885,147.3,147.27,6.7896]
[1746628542798,6.7882,147.31,147.27,6.7896]
[1746628543301,6.7882,147.31,147.28,6.7894]
[1746628543698,14.50657736,147.31,147.28,6.7894]
[1746628544299,7.71837736,147.31,147.28,6.7894]
[1746628544996,55.32952382,147.36,147.26,7.71837736]
[1746628545200,7.71837736,147.33,147.26,7.71837736]
[1746628545701,6.7871,147.33,147.25,31.2074]
[1746628546096,55.32952382,147.36,147.25,31.2074]
[1746628546300,12.05590187,147.34,147.25,31.2074]
[1746628547001,6.7885,147.3,147.27,6.7897]
[1746628547195,12.05590187,147.34,147.27,6.7897]
[1746628548301,6.7885,147.3,147.27,6.7897]
[1746628551802,6.7885,147.3,147.28,6.7893]
[1746628552003,6.7884,147.31,147.28,6.7893]
[1746628552202,29.08,147.33,147.28,6.7893]
[1746628552399,29.08,147.33,147.29,6.7889]
[1746628552600,6.7878,147.32,147.29,6.7889]
[1746628552802,55.32952382,147.36,147.25,31.2074]
[1746628553309,6.7874,147.33,147.3,6.7884]